Workbook

Sheet Дети 3-7 лет
B1: МБДОУ д/с № 362
A2: Прием пищи | B2: Блюдо | C2: Выход | D2: Калорийность | E2: Белки | F2: Жиры | G2: Углеводы
A3: Завтрак | B3: ='[1]Дневной рацион, Дети 3-7 лет, '!D4 -> Каша "Дружба" на молоке. | C3: ='[1]Дневной рацион, Дети 3-7 лет, '!E4 -> 201 | D3: 180.8 | E3: 4.925 | F3: 6.935 | G3: 24.723
B4: ='[1]Дневной рацион, Дети 3-7 лет, '!D5 -> Бутерброды с маслом . | C4: ='[1]Дневной рацион, Дети 3-7 лет, '!E5 -> 25 | D4: 121.667 | E4: 1.334 | F4: 9.167 | G4: 8.334
B5: ='[1]Дневной рацион, Дети 3-7 лет, '!D6 -> Какао с молоком . | C5: ='[1]Дневной рацион, Дети 3-7 лет, '!E6 -> 200 | D5: 106.7 | E5: 4.6 | F5: 4.3 | G5: 12.4
A6: Завтрак №2
A7: Обед | B7: Огурец соленый | C7: 49 | D7: ='[2]Дневной рацион, Дети 3-7 лет, '!G8 -> 7.644 | E7: ='[2]Дневной рацион, Дети 3-7 лет, '!H8 -> 0.42 | F7: ='[2]Дневной рацион, Дети 3-7 лет, '!I8 -> 0 | G7: ='[2]Дневной рацион, Дети 3-7 лет, '!J8 -> 1.512
B8: ='[2]Дневной рацион, Дети 3-7 лет, '!D9 -> Суп картофельный с клецками из филе кур. | C8: ='[2]Дневной рацион, Дети 3-7 лет, '!E9 -> 200 | D8: ='[2]Дневной рацион, Дети 3-7 лет, '!G9 -> 99.02 | E8: ='[2]Дневной рацион, Дети 3-7 лет, '!H9 -> 4.6 | F8: ='[2]Дневной рацион, Дети 3-7 лет, '!I9 -> 3.2 | G8: ='[2]Дневной рацион, Дети 3-7 лет, '!J9 -> 12.96
B9: ='[2]Дневной рацион, Дети 3-7 лет, '!D10 -> филе кур тушеное с овощами в соусе . | C9: ='[2]Дневной рацион, Дети 3-7 лет, '!E10 -> 198 | D9: ='[2]Дневной рацион, Дети 3-7 лет, '!G10 -> 227.304 | E9: ='[2]Дневной рацион, Дети 3-7 лет, '!H10 -> 15.147 | F9: ='[2]Дневной рацион, Дети 3-7 лет, '!I10 -> 11.781 | G9: ='[2]Дневной рацион, Дети 3-7 лет, '!J10 -> 15.246
B10: ='[2]Дневной рацион, Дети 3-7 лет, '!D11 -> Компот из кураги и изюма. | C10: ='[2]Дневной рацион, Дети 3-7 лет, '!E11 -> 197 | D10: ='[2]Дневной рацион, Дети 3-7 лет, '!G11 -> 18.361 | E10: ='[2]Дневной рацион, Дети 3-7 лет, '!H11 -> 0.119 | F10: ='[2]Дневной рацион, Дети 3-7 лет, '!I11 -> 0 | G10: ='[2]Дневной рацион, Дети 3-7 лет, '!J11 -> 4.472
B11: ='[1]Дневной рацион, Дети 3-7 лет, '!D11 -> Хлеб пшеничный | C11: ='[1]Дневной рацион, Дети 3-7 лет, '!E11 -> 40
B12: ='[1]Дневной рацион, Дети 3-7 лет, '!D12 -> Хлеб ржаной | C12: ='[1]Дневной рацион, Дети 3-7 лет, '!E12 -> 33
A14: Полдник | B14: ='[3]Дневной рацион, Дети 3-7 лет, '!D13 -> Молоко кипяченое | C14: ='[3]Дневной рацион, Дети 3-7 лет, '!E13 -> 180 | D14: ='[3]Дневной рацион, Дети 3-7 лет, '!G13 -> 95.4 | E14: ='[3]Дневной рацион, Дети 3-7 лет, '!H13 -> 5.22 | F14: ='[3]Дневной рацион, Дети 3-7 лет, '!I13 -> 4.5 | G14: ='[3]Дневной рацион, Дети 3-7 лет, '!J13 -> 8.64
B15: ='[3]Дневной рацион, Дети 3-7 лет, '!D12 -> Пирожки, печенные из сдобного теста с капустой. | C15: ='[3]Дневной рацион, Дети 3-7 лет, '!E12 -> 61 | D15: 235.521 | E15: 7.821 | F15: 14.49 | G15: 18.516
A16: Ужин | B16: ='[1]Дневной рацион, Дети 3-7 лет, '!D15 -> Каша вязкая молочная ячневая . | C16: ='[1]Дневной рацион, Дети 3-7 лет, '!E15 -> 201 | D16: 295.671 | E16: 8.342 | F16: 12.663 | G16: 36.984
B17: ='[2]Дневной рацион, Дети 3-7 лет, '!D17 -> Напиток лимонный . | C17: ='[2]Дневной рацион, Дети 3-7 лет, '!E17 -> 200 | D17: ='[2]Дневной рацион, Дети 3-7 лет, '!G17 -> 65 | E17: ='[2]Дневной рацион, Дети 3-7 лет, '!H17 -> 0.27 | F17: ='[2]Дневной рацион, Дети 3-7 лет, '!I17 -> 0.06 | G17: ='[2]Дневной рацион, Дети 3-7 лет, '!J17 -> 15.4
B18: ='[1]Дневной рацион, Дети 3-7 лет, '!D17 -> Хлеб пшеничный | C18: ='[1]Дневной рацион, Дети 3-7 лет, '!E17 -> 20

Sheet Дети до 3-лет
A3: Прием пищи | B3: Блюдо | C3: Выход | D3: Калорийность | E3: Белки | F3: Жиры | G3: Углеводы
A4: Завтрак | B4: ='[4]Дневной рацион, Дети до 3х лет'!D4 -> Каша "Дружба" на молоке. | C4: ='[4]Дневной рацион, Дети до 3х лет'!E4 -> 171 | D4: ='[4]Дневной рацион, Дети до 3х лет'!G4 -> 153.815 | E4: ='[4]Дневной рацион, Дети до 3х лет'!H4 -> 4.19 | F4: ='[4]Дневной рацион, Дети до 3х лет'!I4 -> 5.9 | G4: ='[4]Дневной рацион, Дети до 3х лет'!J4 -> 21.033
B5: ='[4]Дневной рацион, Дети до 3х лет'!D5 -> Бутерброды с маслом . | C5: ='[4]Дневной рацион, Дети до 3х лет'!E5 -> 25 | D5: ='[4]Дневной рацион, Дети до 3х лет'!G5 -> 121.667 | E5: ='[4]Дневной рацион, Дети до 3х лет'!H5 -> 1.334 | F5: ='[4]Дневной рацион, Дети до 3х лет'!I5 -> 9.167 | G5: ='[4]Дневной рацион, Дети до 3х лет'!J5 -> 8.334
B6: ='[4]Дневной рацион, Дети до 3х лет'!D6 -> Какао с молоком . | C6: ='[4]Дневной рацион, Дети до 3х лет'!E6 -> 181 | D6: ='[4]Дневной рацион, Дети до 3х лет'!G6 -> 96.564 | E6: ='[4]Дневной рацион, Дети до 3х лет'!H6 -> 4.163 | F6: ='[4]Дневной рацион, Дети до 3х лет'!I6 -> 3.892 | G6: ='[4]Дневной рацион, Дети до 3х лет'!J6 -> 11.222
A7: Завтрак №2
A8: Обед | B8: Огурец соленый | C8: 49 | D8: =' Дети 3-7 лет'!D7 -> 7.644 | E8: =' Дети 3-7 лет'!E7 -> 0.42 | F8: =' Дети 3-7 лет'!F7 -> 0 | G8: =' Дети 3-7 лет'!G7 -> 1.512
B9: =' Дети 3-7 лет'!B8 -> Суп картофельный с клецками из филе кур. | C9: =' Дети 3-7 лет'!C8 -> 200 | D9: =' Дети 3-7 лет'!D8 -> 99.02 | E9: =' Дети 3-7 лет'!E8 -> 4.6 | F9: =' Дети 3-7 лет'!F8 -> 3.2 | G9: =' Дети 3-7 лет'!G8 -> 12.96
B10: =' Дети 3-7 лет'!B9 -> филе кур тушеное с овощами в соусе . | C10: =' Дети 3-7 лет'!C9 -> 198 | D10: =' Дети 3-7 лет'!D9 -> 227.304 | E10: =' Дети 3-7 лет'!E9 -> 15.147 | F10: =' Дети 3-7 лет'!F9 -> 11.781 | G10: =' Дети 3-7 лет'!G9 -> 15.246
B11: ='[4]Дневной рацион, Дети до 3х лет'!D10 -> Компот из кураги и изюма. | C11: ='[4]Дневной рацион, Дети до 3х лет'!E10 -> 180 | D11: ='[4]Дневной рацион, Дети до 3х лет'!G10 -> 16.776 | E11: ='[4]Дневной рацион, Дети до 3х лет'!H10 -> 0.108 | F11: ='[4]Дневной рацион, Дети до 3х лет'!I10 -> 0 | G11: ='[4]Дневной рацион, Дети до 3х лет'!J10 -> 4.086
B12: ='[4]Дневной рацион, Дети до 3х лет'!D11 -> Хлеб пшеничный | C12: ='[4]Дневной рацион, Дети до 3х лет'!E11 -> 30 | D12: ='[4]Дневной рацион, Дети до 3х лет'!G11 -> 0 | E12: ='[4]Дневной рацион, Дети до 3х лет'!H11 -> 0 | F12: ='[4]Дневной рацион, Дети до 3х лет'!I11 -> 0 | G12: ='[4]Дневной рацион, Дети до 3х лет'!J11 -> 0
B13: ='[4]Дневной рацион, Дети до 3х лет'!D12 -> Хлеб ржаной | C13: ='[4]Дневной рацион, Дети до 3х лет'!E12 -> 28 | D13: ='[4]Дневной рацион, Дети до 3х лет'!G12 -> 0 | E13: ='[4]Дневной рацион, Дети до 3х лет'!H12 -> 0 | F13: ='[4]Дневной рацион, Дети до 3х лет'!I12 -> 0 | G13: ='[4]Дневной рацион, Дети до 3х лет'!J12 -> 0
A15: полдник | B15: ='[3]Дневной рацион, Дети 3-7 лет, '!D13 -> Молоко кипяченое | C15: ='[3]Дневной рацион, Дети 3-7 лет, '!E13 -> 180 | D15: ='[3]Дневной рацион, Дети 3-7 лет, '!G13 -> 95.4 | E15: ='[3]Дневной рацион, Дети 3-7 лет, '!H13 -> 5.22 | F15: ='[3]Дневной рацион, Дети 3-7 лет, '!I13 -> 4.5 | G15: ='[3]Дневной рацион, Дети 3-7 лет, '!J13 -> 8.64
B16: ='[3]Дневной рацион, Дети 3-7 лет, '!D12 -> Пирожки, печенные из сдобного теста с капустой. | C16: ='[3]Дневной рацион, Дети 3-7 лет, '!E12 -> 61 | D16: ='[4]Дневной рацион, Дети до 3х лет'!G14 -> 208.214 | E16: ='[4]Дневной рацион, Дети до 3х лет'!H14 -> 6.914 | F16: ='[4]Дневной рацион, Дети до 3х лет'!I14 -> 12.81 | G16: ='[4]Дневной рацион, Дети до 3х лет'!J14 -> 16.369
A17: Ужин | B17: ='[4]Дневной рацион, Дети до 3х лет'!D15 -> Каша вязкая молочная ячневая . | C17: ='[4]Дневной рацион, Дети до 3х лет'!E15 -> 181 | D17: ='[4]Дневной рацион, Дети до 3х лет'!G15 -> 266.251 | E17: ='[4]Дневной рацион, Дети до 3х лет'!H15 -> 7.512 | F17: ='[4]Дневной рацион, Дети до 3х лет'!I15 -> 11.403 | G17: ='[4]Дневной рацион, Дети до 3х лет'!J15 -> 33.304
B18: =' Дети 3-7 лет'!B17 -> Напиток лимонный . | C18: =' Дети 3-7 лет'!C17 -> 200 | D18: =' Дети 3-7 лет'!D17 -> 65 | E18: =' Дети 3-7 лет'!E17 -> 0.27 | F18: =' Дети 3-7 лет'!F17 -> 0.06 | G18: =' Дети 3-7 лет'!G17 -> 15.4
B19: ='[4]Дневной рацион, Дети до 3х лет'!D17 -> Хлеб пшеничный | C19: ='[4]Дневной рацион, Дети до 3х лет'!E17 -> 20 | D19: ='[4]Дневной рацион, Дети до 3х лет'!G17 -> 0 | E19: ='[4]Дневной рацион, Дети до 3х лет'!H17 -> 0 | F19: ='[4]Дневной рацион, Дети до 3х лет'!I17 -> 0 | G19: ='[4]Дневной рацион, Дети до 3х лет'!J17 -> 0
